[Event "NJSK 2026 Meisjes B"]
[Site "Helmond, Netherlands"]
[Date "2026.05.01"]
[Round "10.1"]
[White "Jorritsma, Eli Alia"]
[Black "Hardeman, Imara"]
[Result "1/2-1/2"]
[TimeControl "90min/40moves + 30min + 30sec/move"]
[WhiteTitle "-"]
[BlackTitle "-"]
[WhiteFideId "1080849"]
[BlackFideId "40100596"]
[WhiteElo "1861"]
[BlackElo "1718"]

1. f4 {[%clk 00:04:05]} d5 {[%clk 00:05:04]} {[%emt 00:00:06]} 2. Nf3 {[%clk
00:04:07]} c5 {[%clk 00:05:04]} {[%emt 00:00:18]} 3. e3 {[%clk 00:04:09]}
{[%emt 00:00:02]} Nc6 {[%clk 00:05:06]} {[%emt 00:00:08]} 4. Be2 {[%clk
00:04:12]} {[%emt 00:00:02]} Bf5 {[%clk 00:05:08]} {[%emt 00:00:05]} 5. O-O
{[%clk 00:04:13]} {[%emt 00:00:04]} e6 {[%clk 00:05:10]} 6. Ne5 {[%clk
00:04:08]} Qc7 {[%clk 00:05:03]} 7. d4 {[%clk 00:04:09]} f6 {[%clk 00:04:59]} 8.
Nxc6 {[%clk 00:04:07]} Qxc6 {[%clk 00:05:00]} 9. Nd2 {[%clk 00:04:01]} {[%emt
00:00:10]} a6 {[%clk 00:05:02]} {[%emt 00:00:01]} 10. Nf3 {[%clk 00:04:02]}
{[%emt 00:00:02]} c4 {[%clk 00:04:40]} {[%emt 00:00:24]} 11. c3 {[%clk
00:03:54]} {[%emt 00:00:12]} Be7 {[%clk 00:04:36]} {[%emt 00:00:07]} 12. Nh4
{[%clk 00:03:51]} {[%emt 00:00:06]} Be4 {[%clk 00:04:34]} {[%emt 00:00:04]} 13.
Bf3 {[%clk 00:03:50]} {[%emt 00:00:05]} Bxf3 {[%clk 00:04:33]} {[%emt
00:00:04]} 14. Nxf3 {[%clk 00:03:51]} {[%emt 00:00:01]} Bd6 {[%clk 00:04:30]}
{[%emt 00:00:07]} 15. Bd2 {[%clk 00:03:51]} {[%emt 00:00:04]} Ne7 {[%clk
00:04:29]} {[%emt 00:00:04]} 16. Qc2 {[%clk 00:03:47]} {[%emt 00:00:07]} Ng6
{[%clk 00:04:03]} {[%emt 00:00:28]} 17. b3 {[%clk 00:03:41]} {[%emt 00:00:09]}
O-O {[%clk 00:03:57]} {[%emt 00:00:08]} 18. Rab1 {[%clk 00:03:40]} {[%emt
00:00:05]} b5 {[%clk 00:03:50]} {[%emt 00:00:11]} 19. b4 {[%clk 00:03:39]}
{[%emt 00:00:03]} Rae8 {[%clk 00:03:45]} {[%emt 00:00:08]} 20. Rbe1 {[%clk
00:03:24]} {[%emt 00:00:17]} e5 {[%clk 00:03:47]} {[%emt 00:00:02]} 21. fxe5
{[%clk 00:03:21]} {[%emt 00:00:06]} fxe5 {[%clk 00:03:48]} {[%emt 00:00:02]} 22.
Ng5 {[%clk 00:03:17]} {[%emt 00:00:07]} e4 {[%clk 00:03:26]} {[%emt 00:00:25]}
23. Nh3 {[%clk 00:03:09]} {[%emt 00:00:11]} Qd7 {[%clk 00:03:21]} {[%emt
00:00:07]} 24. Nf4 {[%clk 00:03:03]} {[%emt 00:00:09]} Nxf4 {[%clk 00:03:22]}
{[%emt 00:00:03]} 25. exf4 {[%clk 00:03:04]} Qf5 {[%clk 00:03:20]} {[%emt
00:00:05]} 26. Qd1 {[%clk 00:02:46]} {[%emt 00:00:21]} Re7 {[%clk 00:03:14]}
{[%emt 00:00:10]} 27. g4 {[%clk 00:02:36]} {[%emt 00:00:13]} Qd7 {[%clk
00:03:11]} {[%emt 00:00:06]} 28. f5 {[%clk 00:02:30]} {[%emt 00:00:09]} Ref7
{[%clk 00:03:06]} {[%emt 00:00:09]} 29. Bg5 {[%clk 00:02:18]} {[%emt 00:00:14]}
Be7 {[%clk 00:03:05]} {[%emt 00:00:04]} 30. Qd2 {[%clk 00:02:16]} {[%emt
00:00:08]} Bxg5 {[%clk 00:02:50]} {[%emt 00:00:15]} 31. Qxg5 {[%clk 00:02:18]}
Qe7 {[%clk 00:02:52]} {[%emt 00:00:01]} 32. Qxe7 {[%clk 00:02:15]} {[%emt
00:00:05]} Rxe7 {[%clk 00:02:55]} 33. Re3 {[%clk 00:02:16]} {[%emt 00:00:02]}
Ref7 {[%clk 00:02:52]} {[%emt 00:00:06]} 34. Rg3 {[%clk 00:02:15]} {[%emt
00:00:03]} Rf6 {[%clk 00:02:26]} {[%emt 00:00:30]} 35. Rg2 {[%clk 00:02:15]}
{[%emt 00:00:03]} R8f7 {[%clk 00:02:22]} {[%emt 00:00:06]} 36. Rgf2 {[%clk
00:02:17]} {[%emt 00:00:01]} Re7 {[%clk 00:02:04]} {[%emt 00:00:22]} 37. g5
{[%clk 00:02:10]} {[%emt 00:00:10]} Rf8 {[%clk 00:02:04]} {[%emt 00:00:03]} 38.
f6 {[%clk 00:02:10]} {[%emt 00:00:02]} gxf6 {[%clk 00:02:03]} {[%emt 00:00:04]}
39. gxf6 {[%clk 00:02:11]} {[%emt 00:00:02]} Ref7 {[%clk 00:02:03]} {[%emt
00:00:03]} 40. Rf5 {[%clk 00:02:09]} {[%emt 00:00:05]} Rd8 {[%clk 00:01:55]}
{[%emt 00:00:12]} 41. Re5 {[%clk 00:02:09]} {[%emt 00:00:02]} Rfd7 {[%clk
00:01:29]} {[%emt 00:00:29]} 42. Re6 {[%clk 00:02:00]} {[%emt 00:00:12]} Rd6
{[%clk 00:01:11]} {[%emt 00:00:22]} 43. Re7 {[%clk 00:01:58]} {[%emt 00:00:04]}
R6d7 {[%clk 00:01:11]} {[%emt 00:00:04]} 44. Re5 {[%clk 00:01:53]} {[%emt
00:00:07]} Kf7 {[%clk 00:01:11]} {[%emt 00:00:03]} 45. Rh5 {[%clk 00:01:51]}
{[%emt 00:00:04]} Kg6 {[%clk 00:01:07]} {[%emt 00:00:08]} 46. Re5 {[%clk
00:01:50]} {[%emt 00:00:03]} Kf7 {[%clk 00:01:09]} {[%emt 00:00:02]} 47. Rff5
{[%clk 00:01:48]} {[%emt 00:00:04]} Rg8+ {[%clk 00:01:06]} {[%emt 00:00:07]} 48.
Kf2 {[%clk 00:01:49]} {[%emt 00:00:01]} Rgd8 {[%clk 00:01:07]} {[%emt
00:00:02]} 49. Rf4 {[%clk 00:01:41]} {[%emt 00:00:11]} Rd6 {[%clk 00:01:00]}
{[%emt 00:00:11]} 50. Ref5 {[%clk 00:01:42]} {[%emt 00:00:02]} Re6 {[%clk
00:00:59]} {[%emt 00:00:04]} 51. Ke3 {[%clk 00:01:38]} {[%emt 00:00:07]} Rdd6
{[%clk 00:01:00]} {[%emt 00:00:02]} 52. Rh5 {[%clk 00:01:15]} {[%emt 00:00:25]}
Kg6 {[%clk 00:00:27]} {[%emt 00:00:37]} 53. f7 {[%clk 00:01:12]} {[%emt
00:00:06]} Rf6 {[%clk 00:00:29]} {[%emt 00:00:02]} 54. Rxh7 {[%clk 00:00:49]}
{[%emt 00:00:26]} Rxf4 {[%clk 00:00:18]} {[%emt 00:00:14]} 55. Kxf4 {[%clk
00:00:42]} {[%emt 00:00:11]} Rf6+ {[%clk 00:00:21]} 56. Ke5 {[%clk 00:00:43]}
Rxf7 {[%clk 00:00:23]} 57. Rh3 {[%clk 00:00:41]} {[%emt 00:00:07]} Rf5+ {[%clk
00:00:23]} {[%emt 00:00:02]} 58. Ke6 {[%clk 00:00:40]} {[%emt 00:00:07]} Rg5
{[%clk 00:00:08]} {[%emt 00:00:14]} 59. Re3 {[%clk 00:00:34]} {[%emt 00:00:09]}
Rh5 {[%clk 00:00:08]} {[%emt 00:00:02]} 60. Rg3 {[%clk 00:00:35]} {[%emt
00:00:02]} Rg5 {[%clk 00:00:09]} {[%emt 00:00:02]} 61. Re3 {[%clk 00:00:34]}
{[%emt 00:00:03]} Rh5 {[%clk 00:00:11]} 62. Rg3 {[%clk 00:00:34]} {[%emt
00:00:03]} Rg5 {[%clk 00:00:14]} 63. Re3 {[%clk 00:00:36]} Rh5 {[%clk
00:00:16]} {[%emt 00:00:01]} 64. Rg3 {[%clk 00:00:38]} 1/2-1/2

[Event "NJSK 2026 Meisjes B"]
[Site "Helmond, Netherlands"]
[Date "2026.05.01"]
[Round "11.1"]
[White "Hardeman, Imara"]
[Black "Jorritsma, Eli Alia"]
[Result "1/2-1/2"]
[TimeControl "90min/40moves + 30min + 30sec/move"]
[WhiteTitle "-"]
[BlackTitle "-"]
[WhiteFideId "40100596"]
[BlackFideId "1080849"]
[WhiteElo "1718"]
[BlackElo "1861"]

1. d4 {[%clk 00:04:06]} f5 {[%clk 00:05:06]} 2. Bf4 {[%clk 00:04:08]} Nf6
{[%clk 00:05:07]} {[%emt 00:00:02]} 3. e3 {[%clk 00:04:11]} e6 {[%clk
00:05:09]} {[%emt 00:00:01]} 4. Nf3 {[%clk 00:04:13]} Bd6 {[%emt 00:00:05]} 5.
Ne5 {[%clk 00:04:13]} O-O {[%clk 00:05:09]} {[%emt 00:00:05]} 6. Be2 {[%clk
00:04:14]} {[%emt 00:00:01]} b6 {[%clk 00:05:09]} {[%emt 00:00:03]} 7. Bf3
{[%clk 00:04:06]} {[%emt 00:00:11]} Ne4 {[%clk 00:04:47]} {[%emt 00:00:28]} 8.
Nc4 {[%clk 00:03:33]} {[%emt 00:00:33]} Bxf4 {[%clk 00:04:45]} {[%emt
00:00:04]} 9. exf4 {[%clk 00:03:36]} Bb7 {[%clk 00:04:41]} {[%emt 00:00:08]} 10.
Nbd2 {[%clk 00:03:28]} {[%emt 00:00:11]} d5 {[%clk 00:04:38]} {[%emt 00:00:06]}
11. Ne5 {[%clk 00:03:30]} {[%emt 00:00:02]} Nd7 {[%clk 00:04:38]} {[%emt
00:00:03]} 12. O-O {[%clk 00:03:16]} {[%emt 00:00:16]} Rf6 {[%clk 00:04:24]}
{[%emt 00:00:17]} 13. g3 {[%clk 00:03:00]} {[%emt 00:00:20]} c5 {[%clk
00:04:12]} {[%emt 00:00:14]} 14. c3 {[%clk 00:02:55]} {[%emt 00:00:09]} Rc8
{[%clk 00:04:09]} {[%emt 00:00:07]} 15. Bg2 {[%clk 00:02:40]} {[%emt 00:00:17]}
Nxe5 {[%clk 00:03:54]} {[%emt 00:00:18]} 16. fxe5 {[%clk 00:02:36]} {[%emt
00:00:06]} Rg6 {[%clk 00:03:46]} {[%emt 00:00:11]} 17. f3 {[%clk 00:02:18]}
{[%emt 00:00:22]} Nxd2 {[%clk 00:03:38]} {[%emt 00:00:11]} 18. Qxd2 {[%clk
00:02:20]} {[%emt 00:00:02]} h5 {[%clk 00:03:28]} {[%emt 00:00:11]} 19. Qf4
{[%clk 00:02:09]} {[%emt 00:00:14]} cxd4 {[%clk 00:03:14]} {[%emt 00:00:17]} 20.
cxd4 {[%clk 00:02:09]} {[%emt 00:00:03]} Rc2 {[%clk 00:03:10]} {[%emt
00:00:06]} 21. Rf2 {[%clk 00:02:05]} {[%emt 00:00:08]} Rc4 {[%clk 00:03:04]}
{[%emt 00:00:09]} 22. Bf1 {[%clk 00:01:50]} {[%emt 00:00:18]} Rc7 {[%clk
00:02:57]} {[%emt 00:00:10]} 23. Rc1 {[%clk 00:01:45]} {[%emt 00:00:08]} Rxc1
{[%clk 00:02:57]} {[%emt 00:00:04]} 24. Qxc1 {[%clk 00:01:48]} h4 {[%clk
00:02:56]} {[%emt 00:00:04]} 25. Rg2 {[%clk 00:01:47]} {[%emt 00:00:03]} hxg3
{[%clk 00:02:48]} {[%emt 00:00:12]} 26. Rxg3 {[%clk 00:01:45]} {[%emt
00:00:04]} Rxg3+ {[%clk 00:02:25]} {[%emt 00:00:26]} 27. hxg3 {[%clk 00:01:47]}
{[%emt 00:00:01]} Qe7 {[%clk 00:02:19]} {[%emt 00:00:09]} 28. Qc3 {[%clk
00:01:36]} {[%emt 00:00:15]} Kf7 {[%clk 00:01:57]} {[%emt 00:00:24]} 29. Kf2
{[%clk 00:01:30]} {[%emt 00:00:09]} Qd7 {[%clk 00:01:53]} {[%emt 00:00:07]} 30.
Be2 {[%clk 00:01:21]} {[%emt 00:00:12]} Qc6 {[%clk 00:01:52]} {[%emt 00:00:04]}
31. Qxc6 {[%clk 00:01:20]} {[%emt 00:00:04]} Bxc6 {[%clk 00:01:54]} {[%emt
00:00:01]} 32. Bd3 {[%clk 00:01:13]} {[%emt 00:00:10]} g6 {[%clk 00:01:48]}
{[%emt 00:00:09]} 33. f4 {[%clk 00:00:57]} {[%emt 00:00:20]} Ke7 {[%clk
00:01:48]} {[%emt 00:00:03]} 34. Ke2 {[%clk 00:00:57]} {[%emt 00:00:04]} Kd7
{[%clk 00:01:49]} {[%emt 00:00:01]} 35. a3 {[%clk 00:00:55]} {[%emt 00:00:05]}
Kc7 {[%clk 00:01:48]} {[%emt 00:00:04]} 36. Kd2 {[%clk 00:00:52]} {[%emt
00:00:06]} Kb7 {[%clk 00:01:48]} {[%emt 00:00:02]} 37. Kc3 {[%clk 00:00:52]}
{[%emt 00:00:03]} a6 {[%clk 00:01:50]} {[%emt 00:00:02]} 38. b4 {[%clk
00:00:46]} {[%emt 00:00:09]} b5 {[%clk 00:01:43]} {[%emt 00:00:10]} 39. Kd2
{[%clk 00:00:42]} {[%emt 00:00:07]} Kc7 {[%clk 00:01:36]} {[%emt 00:00:11]} 40.
Ke2 {[%clk 00:00:44]} Kd7 {[%clk 00:01:38]} 41. Kf2 {[%clk 00:00:46]} Ke7
{[%clk 00:01:40]} 42. Kg2 {[%clk 00:00:49]} Kf7 {[%clk 00:01:41]} {[%emt
00:00:02]} 43. Kh3 {[%clk 00:00:51]} {[%emt 00:00:01]} Kg7 {[%clk 00:01:42]} 44.
g4 {[%clk 00:00:44]} {[%emt 00:00:10]} Kh6 {[%clk 00:01:40]} {[%emt 00:00:06]}
45. g5+ {[%clk 00:00:41]} {[%emt 00:00:06]} Kg7 {[%clk 00:01:40]} {[%emt
00:00:02]} 46. Kg3 {[%clk 00:00:41]} {[%emt 00:00:06]} Kf7 {[%clk 00:01:43]} 47.
Kf3 {[%clk 00:00:43]} Ke7 {[%clk 00:01:45]} {[%emt 00:00:01]} 48. Ke2 {[%clk
00:00:45]} {[%emt 00:00:02]} Kd7 {[%emt 00:00:04]} 49. Kf2 {[%clk 00:00:46]}
1/2-1/2

[Event "NJSK 2026 Meisjes B"]
[Site "Helmond, Netherlands"]
[Date "2026.05.01"]
[Round "12.1"]
[White "Hardeman, Imara"]
[Black "Jorritsma, Eli Alia"]
[Result "1-0"]
[TimeControl "90min/40moves + 30min + 30sec/move"]
[WhiteTitle "-"]
[BlackTitle "-"]
[WhiteFideId "40100596"]
[BlackFideId "1080849"]
[WhiteElo "1718"]
[BlackElo "1861"]

1. d4 {[%clk 00:04:06]} f5 {[%clk 00:05:06]} {[%emt 00:00:02]} 2. Bf4 {[%clk
00:04:08]} Nf6 {[%clk 00:05:07]} {[%emt 00:00:07]} 3. e3 {[%clk 00:04:11]} e6
{[%clk 00:05:09]} {[%emt 00:00:02]} 4. Nf3 {[%clk 00:04:13]} b6 {[%clk
00:05:12]} 5. Ne5 {[%clk 00:04:14]} {[%emt 00:00:02]} Bb7 {[%clk 00:05:11]}
{[%emt 00:00:08]} 6. Be2 {[%clk 00:04:14]} {[%emt 00:00:03]} Nc6 {[%clk
00:05:11]} {[%emt 00:00:09]} 7. Bf3 {[%clk 00:04:07]} {[%emt 00:00:18]} Bd6
{[%clk 00:04:59]} {[%emt 00:00:21]} 8. Nxc6 {[%clk 00:04:03]} Bxc6 {[%clk
00:04:59]} 9. Bxc6 {[%clk 00:03:47]} dxc6 {[%clk 00:05:01]} 10. Bxd6 {[%clk
00:03:19]} {[%emt 00:00:31]} cxd6 {[%clk 00:05:02]} {[%emt 00:00:01]} 11. Nd2
{[%clk 00:03:17]} {[%emt 00:00:05]} O-O {[%clk 00:05:02]} {[%emt 00:00:03]} 12.
Nf3 {[%clk 00:03:18]} {[%emt 00:00:02]} Qc7 {[%clk 00:04:53]} {[%emt 00:00:11]}
13. Ng5 {[%clk 00:03:14]} {[%emt 00:00:08]} Rfe8 {[%clk 00:04:49]} {[%emt
00:00:08]} 14. Qd3 {[%clk 00:03:08]} {[%emt 00:00:09]} h6 {[%emt 00:00:21]} 15.
Nf3 {[%clk 00:02:58]} Ne4 {[%clk 00:04:30]} {[%emt 00:00:16]} 16. Nd2 {[%clk
00:02:59]} {[%emt 00:00:02]} Nxd2 {[%emt 00:00:04]} 17. Qxd2 {[%clk 00:02:59]}
e5 {[%clk 00:04:27]} {[%emt 00:00:07]} 18. dxe5 {[%clk 00:02:49]} {[%emt
00:00:13]} dxe5 {[%clk 00:04:27]} {[%emt 00:00:02]} 19. O-O-O {[%clk 00:02:46]}
{[%emt 00:00:07]} Rad8 {[%clk 00:04:25]} {[%emt 00:00:05]} 20. Qe2 {[%clk
00:02:48]} {[%emt 00:00:01]} Rd5 {[%clk 00:04:16]} {[%emt 00:00:11]} 21. Qc4
{[%clk 00:02:46]} {[%emt 00:00:08]} Red8 {[%clk 00:04:08]} {[%emt 00:00:09]} 22.
Rxd5 {[%clk 00:02:40]} {[%emt 00:00:09]} Rxd5 {[%clk 00:04:09]} {[%emt
00:00:02]} 23. Rd1 {[%clk 00:02:41]} {[%emt 00:00:02]} Qd7 {[%clk 00:03:59]}
{[%emt 00:00:12]} 24. a3 {[%clk 00:01:55]} {[%emt 00:00:51]} Kf8 {[%clk
00:03:59]} {[%emt 00:00:02]} 25. Rxd5 {[%clk 00:01:48]} {[%emt 00:00:10]} Qxd5
{[%clk 00:03:59]} {[%emt 00:00:03]} 26. Qb4+ {[%clk 00:01:50]} {[%emt
00:00:01]} Kf7 {[%clk 00:03:55]} {[%emt 00:00:07]} 27. f3 {[%clk 00:01:38]}
{[%emt 00:00:15]} e4 {[%clk 00:03:19]} {[%emt 00:00:39]} 28. f4 {[%clk
00:01:18]} {[%emt 00:00:23]} g5 {[%clk 00:02:58]} {[%emt 00:00:24]} 29. g3
{[%clk 00:00:49]} {[%emt 00:00:34]} gxf4 {[%clk 00:02:30]} {[%emt 00:00:29]} 30.
gxf4 {[%clk 00:00:49]} {[%emt 00:00:03]} Qa5 {[%clk 00:01:53]} {[%emt
00:00:39]} 31. Qxa5 {[%clk 00:00:28]} {[%emt 00:00:24]} bxa5 {[%clk 00:01:55]}
{[%emt 00:00:02]} 32. Kd1 {[%clk 00:00:30]} {[%emt 00:00:01]} Kg6 {[%clk
00:01:57]} 33. Ke2 {[%clk 00:00:33]} Kh5 {[%clk 00:01:59]} {[%emt 00:00:01]} 34.
Kf2 {[%clk 00:00:35]} Kg4 {[%clk 00:02:02]} {[%emt 00:00:01]} 35. Kg2 {[%clk
00:00:37]} a6 {[%clk 00:01:53]} {[%emt 00:00:12]} 36. b4 {[%clk 00:00:29]}
{[%emt 00:00:11]} axb4 {[%clk 00:01:39]} {[%emt 00:00:17]} 37. axb4 {[%clk
00:00:30]} {[%emt 00:00:02]} h5 {[%clk 00:01:37]} {[%emt 00:00:04]} 38. h3+
{[%clk 00:00:27]} {[%emt 00:00:07]} Kh4 {[%clk 00:01:34]} {[%emt 00:00:06]} 39.
c3 {[%clk 00:00:27]} {[%emt 00:00:03]} c5 {[%clk 00:01:22]} {[%emt 00:00:15]}
40. bxc5 {[%clk 00:00:24]} {[%emt 00:00:07]} a5 {[%clk 00:01:24]} 41. c6 {[%clk
00:00:26]} a4 {[%clk 00:01:27]} 42. c7 {[%clk 00:00:28]} a3 {[%clk 00:01:29]}
43. c8=Q {[%clk 00:00:29]} {[%emt 00:00:04]} a2 {[%clk 00:01:31]} 44. Qd8#
{[%clk 00:00:31]} 1-0

[ePGN "0.1;DGT LiveChess/2.2.10"]

[Event "NJSK 2026 Jeugd C"]
[Site "Helmond, Netherlands"]
[Date "2026.04.25"]
[Round "1.1"]
[White "Cubuk, Armin"]
[Black "Leenen, Boyd"]
[Result "0-1"]
[TimeControl "90min/40moves + 30sec/move"]
[WhiteTitle "-"]
[BlackTitle "-"]
[WhiteFideId "40105423"]
[BlackFideId "1083937"]
[WhiteElo "1881"]
[BlackElo "2205"]

1. e4 {[%clk 01:30:57]} {[%emt 00:00:02]} e5 {[%clk 01:30:54]} {[%emt
00:00:06]} 2. Nf3 {[%clk 01:31:19]} {[%emt 00:00:07]} Nc6 {[%clk 01:31:18]}
{[%emt 00:00:07]} 3. d4 {[%clk 01:31:44]} {[%emt 00:00:05]} exd4 {[%clk
01:31:44]} {[%emt 00:00:04]} 4. Bc4 {[%clk 01:32:07]} {[%emt 00:00:06]} Bb4+
{[%clk 01:32:11]} {[%emt 00:00:03]} 5. c3 {[%clk 01:32:13]} {[%emt 00:00:26]}
dxc3 {[%clk 01:32:36]} {[%emt 00:00:06]} 6. bxc3 {[%clk 01:32:34]} {[%emt
00:00:06]} Ba5 {[%clk 01:33:03]} {[%emt 00:00:05]} 7. O-O {[%clk 01:32:42]}
{[%emt 00:00:20]} Bb6 {[%clk 01:33:16]} {[%emt 00:00:17]} 8. e5 {[%clk
01:21:28]} {[%emt 00:11:44]} Nge7 {[%clk 01:27:12]} {[%emt 00:06:34]} 9. Ba3
{[%clk 01:04:58]} {[%emt 00:17:01]} O-O {[%clk 01:23:38]} {[%emt 00:04:03]} 10.
Re1 {[%clk 00:53:28]} {[%emt 00:12:00]} h6 {[%clk 01:19:02]} {[%emt 00:05:05]}
11. Bb3 {[%clk 00:40:02]} {[%emt 00:13:57]} Re8 {[%clk 01:00:43]} {[%emt
00:18:49]} 12. Qd3 {[%clk 00:35:53]} {[%emt 00:04:39]} d5 {[%clk 00:55:40]}
{[%emt 00:05:34]} 13. exd6 {[%clk 00:35:01]} {[%emt 00:01:22]} cxd6 {[%clk
00:56:08]} {[%emt 00:00:02]} 14. Qxd6 {[%clk 00:30:45]} {[%emt 00:04:46]} Qxd6
{[%clk 00:42:55]} {[%emt 00:13:43]} 15. Bxd6 {[%clk 00:31:12]} {[%emt
00:00:03]} Bg4 {[%clk 00:43:08]} {[%emt 00:00:16]} 16. Nbd2 {[%clk 00:24:54]}
{[%emt 00:06:48]} Nf5 {[%clk 00:29:44]} {[%emt 00:13:54]} 17. Bg3 {[%clk
00:21:28]} {[%emt 00:03:55]} Nxg3 {[%clk 00:29:36]} {[%emt 00:00:39]} 18. hxg3
{[%clk 00:21:51]} {[%emt 00:00:07]} Ba5 {[%clk 00:29:34]} {[%emt 00:00:32]} 19.
Ne4 {[%clk 00:11:08]} {[%emt 00:11:13]} Rad8 {[%clk 00:22:40]} {[%emt
00:07:24]} 20. Re3 {[%clk 00:08:56]} {[%emt 00:02:41]} Kf8 {[%clk 00:19:09]}
{[%emt 00:04:01]} 21. Rae1 {[%clk 00:06:15]} {[%emt 00:03:11]} Bb6 {[%clk
00:18:28]} {[%emt 00:01:12]} 22. R3e2 {[%clk 00:06:08]} {[%emt 00:00:37]} Bxf3
{[%clk 00:18:17]} {[%emt 00:00:41]} 23. gxf3 {[%clk 00:06:31]} {[%emt
00:00:07]} Ne5 {[%clk 00:18:41]} {[%emt 00:00:06]} 24. Kg2 {[%clk 00:06:19]}
{[%emt 00:00:42]} Nd3 {[%clk 00:19:03]} {[%emt 00:00:09]} 25. Ba4 {[%clk
00:05:04]} {[%emt 00:01:44]} Nxe1+ {[%clk 00:19:22]} {[%emt 00:00:11]} 26. Rxe1
{[%clk 00:05:42]} {[%emt 00:00:30]} f5 {[%clk 00:19:53]} {[%emt 00:00:21]} 27.
Bxe8 {[%clk 00:04:26]} {[%emt 00:01:46]} Rxe8 {[%clk 00:20:16]} {[%emt
00:00:08]} 28. Re2 {[%clk 00:04:40]} {[%emt 00:00:15]} fxe4 {[%clk 00:20:40]}
{[%emt 00:00:06]} 29. fxe4 {[%clk 00:05:06]} {[%emt 00:00:04]} Rc8 {[%clk
00:20:39]} {[%emt 00:00:31]} 30. Rc2 {[%clk 00:05:22]} {[%emt 00:00:14]} Rc4
{[%clk 00:21:02]} {[%emt 00:00:08]} 31. Kf3 {[%clk 00:05:39]} {[%emt 00:00:12]}
Bd4 {[%clk 00:21:20]} {[%emt 00:00:12]} 32. Ke2 {[%clk 00:05:34]} {[%emt
00:00:36]} Rxc3 {[%clk 00:21:43]} {[%emt 00:00:07]} 33. Rd2 {[%clk 00:05:57]}
{[%emt 00:00:07]} Bb6 {[%clk 00:21:38]} {[%emt 00:00:34]} 34. Rd7 {[%clk
00:05:40]} {[%emt 00:00:48]} Rc2+ {[%clk 00:22:02]} {[%emt 00:00:05]} 35. Kd3
{[%clk 00:06:04]} {[%emt 00:00:06]} Rxf2 {[%clk 00:22:26]} {[%emt 00:00:06]} 36.
Rxb7 {[%clk 00:06:27]} {[%emt 00:00:08]} Rxa2 {[%clk 00:22:47]} {[%emt
00:00:08]} 37. Kc4 {[%clk 00:06:49]} {[%emt 00:00:08]} Rd2 {[%clk 00:23:07]}
{[%emt 00:00:10]} 38. e5 {[%clk 00:07:06]} {[%emt 00:00:13]} Rd4+ {[%clk
00:23:34]} {[%emt 00:00:03]} 39. Kc3 {[%clk 00:07:19]} {[%emt 00:00:18]} Re4
{[%clk 00:23:59]} {[%emt 00:00:05]} 40. Rb8+ {[%clk 00:07:16]} {[%emt
00:00:33]} Kf7 {[%clk 00:24:24]} {[%emt 00:00:05]} 41. Rb7+ {[%clk 00:07:34]}
{[%emt 00:00:12]} Kg6 {[%clk 00:24:50]} {[%emt 00:00:04]} 42. Re7 {[%clk
00:07:52]} {[%emt 00:00:12]} Bd4+ {[%clk 00:25:17]} {[%emt 00:00:03]} 43. Kd3
{[%clk 00:08:13]} {[%emt 00:00:09]} Rxe5 {[%clk 00:25:44]} {[%emt 00:00:03]} 44.
Rd7 {[%clk 00:08:16]} {[%emt 00:00:27]} Bb6 {[%clk 00:26:10]} {[%emt 00:00:04]}
45. g4 {[%clk 00:08:39]} {[%emt 00:00:06]} Rg5 {[%clk 00:26:37]} {[%emt
00:00:04]} 46. Rd6+ {[%clk 00:09:03]} {[%emt 00:00:06]} Kh7 {[%clk 00:27:04]}
{[%emt 00:00:03]} 0-1